[Event "*** Titled Tuesday Blitz"]
[Site "Chess.com"]
[Date "2020.04.21"]
[Round "5"]
[White "Oleksandr_Bortnyk"]
[Black "Jospem"]
[Result "1/2-1/2"]
[WhiteElo "3029"]
[BlackElo "2840"]
[TimeControl "180+1"]
[EndTime "11:00:44 PDT"]
[Termination "Game drawn - insufficient material"]

1. e4 {[%clk 0:03:00.9]} 1... c5 {[%clk 0:02:59.6]} 2. Be2 {[%clk 0:03:00.7]}
2... d6 {[%clk 0:03:00.3]} 3. f4 {[%clk 0:03:00.3]} 3... Nc6 {[%clk 0:03:00.7]}
4. Nf3 {[%clk 0:03:00.7]} 4... g6 {[%clk 0:03:01.2]} 5. O-O {[%clk 0:03:00.8]}
5... Bg7 {[%clk 0:03:01.8]} 6. d3 {[%clk 0:03:01.3]} 6... e6 {[%clk 0:03:02.3]}
7. c3 {[%clk 0:03:00.8]} 7... Nge7 {[%clk 0:03:02.9]} 8. Be3 {[%clk 0:03:00.7]}
8... b6 {[%clk 0:02:59.3]} 9. Qe1 {[%clk 0:02:53.3]} 9... h6 {[%clk 0:02:58.2]}
10. Na3 {[%clk 0:02:39.3]} 10... Bb7 {[%clk 0:02:54.6]} 11. d4 {[%clk
0:02:32.8]} 11... cxd4 {[%clk 0:02:46.5]} 12. cxd4 {[%clk 0:02:33.7]} 12... O-O
{[%clk 0:02:28.8]} 13. Rc1 {[%clk 0:02:21.2]} 13... Rc8 {[%clk 0:02:27.2]} 14.
Qd2 {[%clk 0:02:00.4]} 14... Qd7 {[%clk 0:02:05.6]} 15. Bd3 {[%clk 0:01:45.5]}
15... a5 {[%clk 0:01:54.3]} 16. Nc4 {[%clk 0:01:32.1]} 16... Qd8 {[%clk
0:01:54.4]} 17. e5 {[%clk 0:01:32.4]} 17... dxe5 {[%clk 0:01:53.5]} 18. fxe5
{[%clk 0:01:33.3]} 18... Nb4 {[%clk 0:01:48.9]} 19. Bb1 {[%clk 0:00:35.4]} 19...
Ba6 {[%clk 0:01:48.8]} 20. b3 {[%clk 0:00:32.4]} 20... Kh7 {[%clk 0:01:49.2]}
21. Qf2 {[%clk 0:00:22.4]} 21... Nf5 {[%clk 0:01:41.2]} 22. Bxf5 {[%clk
0:00:21.5]} 22... exf5 {[%clk 0:01:42.1]} 23. Rfd1 {[%clk 0:00:19]} 23... Nd5
{[%clk 0:01:40.9]} 24. Nd6 {[%clk 0:00:16.6]} 24... Rxc1 {[%clk 0:01:39.9]} 25.
Rxc1 {[%clk 0:00:17.2]} 25... Qd7 {[%clk 0:01:40.5]} 26. Bd2 {[%clk 0:00:10.5]}
26... Qe7 {[%clk 0:01:21.3]} 27. a4 {[%clk 0:00:08.1]} 27... Rd8 {[%clk
0:01:20.3]} 28. h4 {[%clk 0:00:06.9]} 28... Qe6 {[%clk 0:00:50.5]} 29. h5 {[%clk
0:00:06.1]} 29... Qe7 {[%clk 0:00:35.3]} 30. hxg6+ {[%clk 0:00:04.5]} 30... fxg6
{[%clk 0:00:36.2]} 31. Re1 {[%clk 0:00:03.5]} 31... Rf8 {[%clk 0:00:32.4]} 32.
Nh4 {[%clk 0:00:02.6]} 32... Qe6 {[%clk 0:00:31]} 33. Nf3 {[%clk 0:00:02.2]}
33... Kg8 {[%clk 0:00:28.9]} 34. Rc1 {[%clk 0:00:02.7]} 34... f4 {[%clk
0:00:26]} 35. Qh4 {[%clk 0:00:02]} 35... g5 {[%clk 0:00:19.9]} 36. Qh5 {[%clk
0:00:02.5]} 36... Bd3 {[%clk 0:00:18.9]} 37. Rc6 {[%clk 0:00:02]} 37... Bg6
{[%clk 0:00:19.2]} 38. Qh2 {[%clk 0:00:01.8]} 38... Qd7 {[%clk 0:00:19.6]} 39.
Rc1 {[%clk 0:00:01.7]} 39... Qe6 {[%clk 0:00:16.6]} 40. Re1 {[%clk 0:00:01.9]}
40... Bc2 {[%clk 0:00:16]} 41. Rc1 {[%clk 0:00:01.6]} 41... Bxb3 {[%clk
0:00:16.2]} 42. Qh5 {[%clk 0:00:01.9]} 42... Bxa4 {[%clk 0:00:16.2]} 43. Ne4
{[%clk 0:00:02.1]} 43... Be8 {[%clk 0:00:16.3]} 44. Qh2 {[%clk 0:00:02]} 44...
Bg6 {[%clk 0:00:16.6]} 45. Nd6 {[%clk 0:00:02.5]} 45... a4 {[%clk 0:00:16.8]}
46. Ra1 {[%clk 0:00:02.9]} 46... Ra8 {[%clk 0:00:16.2]} 47. Kf2 {[%clk
0:00:03.2]} 47... a3 {[%clk 0:00:16.6]} 48. Qg1 {[%clk 0:00:03.8]} 48... Ne3
{[%clk 0:00:16.9]} 49. Bxe3 {[%clk 0:00:03.5]} 49... fxe3+ {[%clk 0:00:17.8]}
50. Kxe3 {[%clk 0:00:03.8]} 50... a2 {[%clk 0:00:17.7]} 51. Qc1 {[%clk
0:00:03.7]} 51... Qb3+ {[%clk 0:00:16.7]} 52. Ke2 {[%clk 0:00:04.2]} 52... Qc2+
{[%clk 0:00:16.9]} 53. Qxc2 {[%clk 0:00:04.1]} 53... Bxc2 {[%clk 0:00:17.8]} 54.
Kd2 {[%clk 0:00:04.1]} 54... Bb1 {[%clk 0:00:17.7]} 55. Kc3 {[%clk 0:00:03.9]}
55... Bf8 {[%clk 0:00:18.1]} 56. Nc4 {[%clk 0:00:01.7]} 56... Rc8 {[%clk
0:00:18.1]} 57. Kb3 {[%clk 0:00:02.2]} 57... b5 {[%clk 0:00:18.1]} 58. Ncd2
{[%clk 0:00:02.7]} 58... Bc2+ {[%clk 0:00:18]} 59. Kxa2 {[%clk 0:00:02.5]} 59...
Bb4 {[%clk 0:00:16.8]} 60. Rc1 {[%clk 0:00:01.9]} 60... Ra8+ {[%clk 0:00:14.4]}
61. Kb2 {[%clk 0:00:02.4]} 61... Ba3+ {[%clk 0:00:14.7]} 62. Kxc2 {[%clk
0:00:01.8]} 62... Rc8+ {[%clk 0:00:15.3]} 63. Kb3 {[%clk 0:00:01.7]} 63... Bxc1
{[%clk 0:00:15.8]} 64. Ne4 {[%clk 0:00:02.6]} 64... Be3 {[%clk 0:00:15.4]} 65.
d5 {[%clk 0:00:02.9]} 65... Bf4 {[%clk 0:00:15.4]} 66. e6 {[%clk 0:00:02.4]}
66... Kf8 {[%clk 0:00:13]} 67. d6 {[%clk 0:00:02.7]} 67... Bxd6 {[%clk
0:00:13.2]} 68. Nxd6 {[%clk 0:00:03]} 68... Rc6 {[%clk 0:00:13.8]} 69. Nxb5
{[%clk 0:00:02.9]} 69... Rxe6 {[%clk 0:00:13.9]} 70. Nbd4 {[%clk 0:00:03.5]}
70... Re4 {[%clk 0:00:13.1]} 71. Kc3 {[%clk 0:00:04]} 71... g4 {[%clk
0:00:13.5]} 72. Nd2 {[%clk 0:00:04.3]} 72... Re3+ {[%clk 0:00:13.5]} 73. Kc4
{[%clk 0:00:04.9]} 73... h5 {[%clk 0:00:14]} 74. Kd5 {[%clk 0:00:04.5]} 74... h4
{[%clk 0:00:13.2]} 75. Nf5 {[%clk 0:00:04.3]} 75... Rd3+ {[%clk 0:00:13.5]} 76.
Ke4 {[%clk 0:00:04.3]} 76... Rxd2 {[%clk 0:00:13.8]} 77. Nxh4 {[%clk 0:00:04.8]}
77... Ra2 {[%clk 0:00:13.3]} 78. Kf4 {[%clk 0:00:04.8]} 78... Ra4+ {[%clk
0:00:13.8]} 79. Kg5 {[%clk 0:00:05.4]} 79... Kf7 {[%clk 0:00:14.4]} 80. g3
{[%clk 0:00:05.1]} 80... Ke6 {[%clk 0:00:14.6]} 81. Ng6 {[%clk 0:00:05.6]} 81...
Kd5 {[%clk 0:00:14.8]} 82. Nf4+ {[%clk 0:00:06]} 82... Ke4 {[%clk 0:00:15.3]}
83. Kxg4 {[%clk 0:00:06.9]} 83... Ra5 {[%clk 0:00:15.7]} 84. Nh3 {[%clk
0:00:06.8]} 84... Ra8 {[%clk 0:00:14.8]} 85. Ng5+ {[%clk 0:00:07.2]} 85... Ke5
{[%clk 0:00:15.4]} 86. Nf3+ {[%clk 0:00:07.6]} 86... Ke4 {[%clk 0:00:15.9]} 87.
Ng5+ {[%clk 0:00:08]} 87... Ke5 {[%clk 0:00:16.4]} 88. Nf3+ {[%clk 0:00:08.3]}
88... Kf6 {[%clk 0:00:17.3]} 89. Nh4 {[%clk 0:00:06.2]} 89... Ra4+ {[%clk
0:00:18.2]} 90. Kh3 {[%clk 0:00:06.6]} 90... Ra3 {[%clk 0:00:18.1]} 91. Ng2
{[%clk 0:00:07]} 91... Kg5 {[%clk 0:00:18.1]} 92. Nh4 {[%clk 0:00:07.6]} 92...
Rb3 {[%clk 0:00:17.9]} 93. Ng2 {[%clk 0:00:08.1]} 93... Ra3 {[%clk 0:00:17.7]}
94. Nh4 {[%clk 0:00:09]} 94... Ra1 {[%clk 0:00:18.1]} 95. Nf3+ {[%clk
0:00:09.4]} 95... Kf5 {[%clk 0:00:18.1]} 96. Nh4+ {[%clk 0:00:10.3]} 96... Ke4
{[%clk 0:00:18.1]} 97. Kg4 {[%clk 0:00:10.9]} 97... Ra4 {[%clk 0:00:17.7]} 98.
Kh3 {[%clk 0:00:10.4]} 98... Ke3 {[%clk 0:00:18]} 99. Kg2 {[%clk 0:00:10.7]}
99... Ra2+ {[%clk 0:00:17.8]} 100. Kh3 {[%clk 0:00:11.2]} 100... Ra4 {[%clk
0:00:18.4]} 101. Kg2 {[%clk 0:00:11.5]} 101... Ke2 {[%clk 0:00:18.8]} 102. Ng6
{[%clk 0:00:10.4]} 102... Ra2 {[%clk 0:00:18.6]} 103. Nh4 {[%clk 0:00:10]}
103... Ke3+ {[%clk 0:00:18.7]} 104. Kh3 {[%clk 0:00:10.5]} 104... Kf2 {[%clk
0:00:17.3]} 105. Nf5 {[%clk 0:00:09.4]} 105... Ra4 {[%clk 0:00:16.1]} 106. Nh4
{[%clk 0:00:09.5]} 106... Ra5 {[%clk 0:00:15.4]} 107. Kg4 {[%clk 0:00:09.7]}
107... Ra3 {[%clk 0:00:15.6]} 108. Nf5 {[%clk 0:00:09.6]} 108... Ra4+ {[%clk
0:00:16.1]} 109. Kh3 {[%clk 0:00:08]} 109... Rb4 {[%clk 0:00:15.4]} 110. Nh4
{[%clk 0:00:08]} 110... Rc4 {[%clk 0:00:15.3]} 111. Nf5 {[%clk 0:00:08.2]}
111... Rc3 {[%clk 0:00:15.8]} 112. Kg4 {[%clk 0:00:08]} 112... Rc5 {[%clk
0:00:16.2]} 113. Kf4 {[%clk 0:00:07.7]} 113... Rc4+ {[%clk 0:00:15.7]} 114. Kg5
{[%clk 0:00:05.6]} 114... Kf3 {[%clk 0:00:15.7]} 115. Kh5 {[%clk 0:00:05.1]}
115... Rc5 {[%clk 0:00:15.2]} 116. Kg5 {[%clk 0:00:04.8]} 116... Rc4 {[%clk
0:00:14.8]} 117. Kh5 {[%clk 0:00:05.1]} 117... Rg4 {[%clk 0:00:14.6]} 118. Kh6
{[%clk 0:00:04.5]} 118... Rg8 {[%clk 0:00:14.2]} 119. Kh5 {[%clk 0:00:03.9]}
119... Rf8 {[%clk 0:00:13.9]} 120. Kg5 {[%clk 0:00:03.3]} 120... Rg8+ {[%clk
0:00:14.1]} 121. Kf6 {[%clk 0:00:03.8]} 121... Ke4 {[%clk 0:00:14.8]} 122. Nd6+
{[%clk 0:00:02.5]} 122... Kf3 {[%clk 0:00:13.7]} 123. Nf5 {[%clk 0:00:03.4]}
123... Rh8 {[%clk 0:00:13.8]} 124. Kg5 {[%clk 0:00:03.4]} 124... Rh1 {[%clk
0:00:13.9]} 125. g4 {[%clk 0:00:03.6]} 125... Rg1 {[%clk 0:00:13.7]} 126. Nh4+
{[%clk 0:00:04]} 126... Kg3 {[%clk 0:00:14.1]} 127. Ng6 {[%clk 0:00:04]} 127...
Kh3 {[%clk 0:00:13.5]} 128. Ne5 {[%clk 0:00:04.3]} 128... Re1 {[%clk 0:00:13.2]}
129. Kf5 {[%clk 0:00:04.6]} 129... Rf1+ {[%clk 0:00:12.1]} 130. Kg6 {[%clk
0:00:05.1]} 130... Kg3 {[%clk 0:00:10.6]} 131. g5 {[%clk 0:00:05.1]} 131... Kf4
{[%clk 0:00:11]} 132. Nf7 {[%clk 0:00:05.5]} 132... Rg1 {[%clk 0:00:10.4]} 133.
Kf6 {[%clk 0:00:05.7]} 133... Rf1 {[%clk 0:00:10.5]} 134. g6 {[%clk 0:00:05.8]}
134... Ke4+ {[%clk 0:00:10.9]} 135. Ke6 {[%clk 0:00:05.7]} 135... Rg1 {[%clk
0:00:10.5]} 136. Kf6 {[%clk 0:00:06.2]} 136... Rxg6+ {[%clk 0:00:10.8]} 137.
Kxg6 {[%clk 0:00:05.9]} 1/2-1/2

[Event "*** Titled Tuesday Blitz"]
[Site "Chess.com"]
[Date "2020.04.21"]
[Round "6"]
[White "Corpescador"]
[Black "Squirlolz"]
[Result "1-0"]
[WhiteElo "2406"]
[BlackElo "2539"]
[TimeControl "180+1"]
[EndTime "11:03:59 PDT"]
[Termination "Corpescador won by checkmate"]

1. e4 {[%clk 0:03:00.9]} 1... e6 {[%clk 0:02:58.6]} 2. d4 {[%clk 0:03:00.6]}
2... d5 {[%clk 0:02:59.5]} 3. Nc3 {[%clk 0:03:00.4]} 3... Nf6 {[%clk 0:02:59.3]}
4. e5 {[%clk 0:03:00.5]} 4... Nfd7 {[%clk 0:02:59.8]} 5. f4 {[%clk 0:03:00.8]}
5... c5 {[%clk 0:03:00.3]} 6. Nf3 {[%clk 0:03:01.1]} 6... Nc6 {[%clk 0:03:01]}
7. Be3 {[%clk 0:03:01.3]} 7... a6 {[%clk 0:03:01.3]} 8. Qd2 {[%clk 0:03:01.2]}
8... Be7 {[%clk 0:03:01.5]} 9. dxc5 {[%clk 0:03:00.1]} 9... Nxc5 {[%clk
0:03:01.7]} 10. O-O-O {[%clk 0:02:57.4]} 10... b5 {[%clk 0:03:01.8]} 11. Qf2
{[%clk 0:02:54]} 11... Na4 {[%clk 0:03:02.1]} 12. Nxa4 {[%clk 0:02:49.8]} 12...
bxa4 {[%clk 0:03:03]} 13. c3 {[%clk 0:02:45]} 13... a3 {[%clk 0:02:59.4]} 14. b3
{[%clk 0:02:43.8]} 14... O-O {[%clk 0:02:56.7]} 15. h4 {[%clk 0:02:41.5]} 15...
a5 {[%clk 0:02:54.2]} 16. Bd3 {[%clk 0:02:38.7]} 16... Ba6 {[%clk 0:02:50.2]}
17. Bxa6 {[%clk 0:02:08.5]} 17... Rxa6 {[%clk 0:02:49.3]} 18. Ng5 {[%clk
0:02:08.6]} 18... a4 {[%clk 0:02:42.7]} 19. Qc2 {[%clk 0:01:43]} 19... axb3
{[%clk 0:02:39]} 20. Qxh7# {[%clk 0:01:41.2]} 1-0

[Event "*** Titled Tuesday Blitz"]
[Site "Chess.com"]
[Date "2020.04.21"]
[Round "6"]
[White "warmoatmeal"]
[Black "crossingthestreet"]
[Result "0-1"]
[WhiteElo "1978"]
[BlackElo "2260"]
[TimeControl "180+1"]
[EndTime "11:04:24 PDT"]
[Termination "crossingthestreet won by resignation"]

1. d4 {[%clk 0:03:00.9]} 1... Nf6 {[%clk 0:02:59.1]} 2. Nf3 {[%clk 0:03:00.5]}
2... d5 {[%clk 0:02:48.1]} 3. Bf4 {[%clk 0:02:59.9]} 3... e6 {[%clk 0:02:47.8]}
4. e3 {[%clk 0:03:00]} 4... Bd6 {[%clk 0:02:48]} 5. c3 {[%clk 0:02:59.7]} 5...
O-O {[%clk 0:02:47.9]} 6. Nbd2 {[%clk 0:02:58.4]} 6... c5 {[%clk 0:02:47.8]} 7.
Bg3 {[%clk 0:02:58.2]} 7... Qc7 {[%clk 0:02:46.5]} 8. Ne5 {[%clk 0:02:55.3]}
8... Nc6 {[%clk 0:02:35.7]} 9. f4 {[%clk 0:02:52.5]} 9... b6 {[%clk 0:02:28.1]}
10. Bd3 {[%clk 0:02:50.7]} 10... Bb7 {[%clk 0:02:28.1]} 11. Qf3 {[%clk
0:02:45.5]} 11... Ne7 {[%clk 0:02:21.2]} 12. O-O {[%clk 0:02:43.5]} 12... Nf5
{[%clk 0:02:17.5]} 13. Bf2 {[%clk 0:02:39.5]} 13... Be7 {[%clk 0:02:17.4]} 14.
Bxf5 {[%clk 0:02:08.9]} 14... exf5 {[%clk 0:02:17.1]} 15. Bh4 {[%clk 0:02:09.4]}
15... Ne4 {[%clk 0:02:05.4]} 16. Rad1 {[%clk 0:01:52.2]} 16... Bxh4 {[%clk
0:02:03.4]} 0-1

[Event "*** Titled Tuesday Blitz"]
[Site "Chess.com"]
[Date "2020.04.21"]
[Round "6"]
[White "littleozy"]
[Black "secretsuperstar7"]
[Result "1-0"]
[WhiteElo "2410"]
[BlackElo "2192"]
[TimeControl "180+1"]
[EndTime "11:04:36 PDT"]
[Termination "littleozy won by checkmate"]

1. d4 {[%clk 0:02:53.3]} 1... d5 {[%clk 0:02:58]} 2. Nc3 {[%clk 0:02:52.7]} 2...
Nf6 {[%clk 0:02:53.2]} 3. Bg5 {[%clk 0:02:53]} 3... e6 {[%clk 0:02:48.3]} 4. e4
{[%clk 0:02:53]} 4... dxe4 {[%clk 0:02:47.7]} 5. Nxe4 {[%clk 0:02:53.9]} 5...
Be7 {[%clk 0:02:47.6]} 6. Bxf6 {[%clk 0:02:54.2]} 6... Bxf6 {[%clk 0:02:45.8]}
7. Nf3 {[%clk 0:02:54.3]} 7... Be7 {[%clk 0:02:44.7]} 8. Bd3 {[%clk 0:02:54.4]}
8... Nd7 {[%clk 0:02:44.7]} 9. Qe2 {[%clk 0:02:54.4]} 9... Nf6 {[%clk
0:02:44.9]} 10. c3 {[%clk 0:02:54.4]} 10... Nd5 {[%clk 0:02:40.8]} 11. g3 {[%clk
0:02:51.7]} 11... Bd7 {[%clk 0:02:27.1]} 12. h4 {[%clk 0:02:45.7]} 12... Rc8
{[%clk 0:02:16.6]} 13. Ne5 {[%clk 0:02:40.8]} 13... a6 {[%clk 0:02:13.8]} 14.
Qf3 {[%clk 0:02:36.5]} 14... Nf6 {[%clk 0:02:09]} 15. Nxf6+ {[%clk 0:02:31.2]}
15... Bxf6 {[%clk 0:02:07.9]} 16. Nxd7 {[%clk 0:02:17]} 16... Qxd7 {[%clk
0:02:06.7]} 17. Qxb7 {[%clk 0:02:16.7]} 17... a5 {[%clk 0:01:53.1]} 18. O-O
{[%clk 0:02:09.5]} 18... O-O {[%clk 0:01:51.6]} 19. Qe4 {[%clk 0:02:00.8]} 19...
c5 {[%clk 0:01:46.5]} 20. Qxh7# {[%clk 0:01:59.5]} 1-0

[Event "*** Titled Tuesday Blitz"]
[Site "Chess.com"]
[Date "2020.04.21"]
[Round "6"]
[White "RestartingChess"]
[Black "DanilNajdin"]
[Result "0-1"]
[WhiteElo "2527"]
[BlackElo "2392"]
[TimeControl "180+1"]
[EndTime "11:04:45 PDT"]
[Termination "DanilNajdin won by checkmate"]

1. e4 {[%clk 0:03:00.9]} 1... e5 {[%clk 0:02:59.4]} 2. Nf3 {[%clk 0:03:01.1]}
2... Nc6 {[%clk 0:02:58.8]} 3. Bc4 {[%clk 0:03:01.5]} 3... Nf6 {[%clk
0:02:58.6]} 4. Ng5 {[%clk 0:03:02.1]} 4... d5 {[%clk 0:02:57.9]} 5. exd5 {[%clk
0:03:03]} 5... Na5 {[%clk 0:02:57.8]} 6. Bb5+ {[%clk 0:03:03.7]} 6... c6 {[%clk
0:02:58.5]} 7. dxc6 {[%clk 0:03:04.6]} 7... bxc6 {[%clk 0:02:59.1]} 8. Qf3
{[%clk 0:03:05.3]} 8... Rb8 {[%clk 0:02:59.4]} 9. Ba4 {[%clk 0:03:05.6]} 9...
Rb4 {[%clk 0:02:57.7]} 10. Bb3 {[%clk 0:03:02]} 10... Nxb3 {[%clk 0:02:49.9]}
11. axb3 {[%clk 0:03:02.9]} 11... h6 {[%clk 0:02:48.2]} 12. Nxf7 {[%clk
0:02:45.8]} 12... Kxf7 {[%clk 0:02:47]} 13. Rxa7+ {[%clk 0:02:46.1]} 13... Be7
{[%clk 0:02:42.8]} 14. Qxc6 {[%clk 0:02:44.6]} 14... Re4+ {[%clk 0:02:37.1]} 15.
Kf1 {[%clk 0:02:43.5]} 15... Bd7 {[%clk 0:02:12.1]} 16. Qa6 {[%clk 0:02:29.7]}
16... Bc5 {[%clk 0:01:32.6]} 17. d3 {[%clk 0:02:16.9]} 17... Bxa7 {[%clk
0:01:24.8]} 18. dxe4 {[%clk 0:02:16.3]} 18... Bb5+ {[%clk 0:01:24.2]} 19. Qxb5
{[%clk 0:02:11]} 19... Qd1# {[%clk 0:01:23]} 0-1

[Event "*** Titled Tuesday Blitz"]
[Site "Chess.com"]
[Date "2020.04.21"]
[Round "6"]
[White "Camels1981"]
[Black "IljaJoke"]
[Result "1-0"]
[WhiteElo "2101"]
[BlackElo "2474"]
[TimeControl "180+1"]
[EndTime "11:04:55 PDT"]
[Termination "Camels1981 won by resignation"]

1. e4 {[%clk 0:03:00.9]} 1... e5 {[%clk 0:02:53.4]} 2. Nf3 {[%clk 0:02:59.2]}
2... Nc6 {[%clk 0:02:51.6]} 3. Bb5 {[%clk 0:02:58.7]} 3... a6 {[%clk 0:02:51.1]}
4. Ba4 {[%clk 0:02:58.1]} 4... Nf6 {[%clk 0:02:34.9]} 5. d4 {[%clk 0:02:58.2]}
5... exd4 {[%clk 0:02:24.5]} 6. O-O {[%clk 0:02:57.6]} 6... b5 {[%clk
0:02:22.3]} 7. e5 {[%clk 0:02:53.7]} 7... Ne4 {[%clk 0:02:13.6]} 8. Bb3 {[%clk
0:02:51.3]} 8... Be7 {[%clk 0:02:11.9]} 9. Nxd4 {[%clk 0:02:44.5]} 9... O-O
{[%clk 0:02:03.2]} 10. Bd5 {[%clk 0:02:39.7]} 10... Nc5 {[%clk 0:01:56.1]} 11.
Nxc6 {[%clk 0:02:21.7]} 11... dxc6 {[%clk 0:01:56]} 12. Bxc6 {[%clk 0:02:21.5]}
12... Rb8 {[%clk 0:01:54.3]} 13. Nc3 {[%clk 0:02:21.9]} 13... Bf5 {[%clk
0:01:52.7]} 14. Qf3 {[%clk 0:01:42.3]} 14... Bxc2 {[%clk 0:01:49.5]} 15. Qg3
{[%clk 0:01:42.3]} 15... Qd3 {[%clk 0:01:44]} 16. Be3 {[%clk 0:01:40.9]} 16...
Ne4 {[%clk 0:01:42.7]} 17. Bxe4 {[%clk 0:01:39.6]} 1-0

[Event "*** Titled Tuesday Blitz"]
[Site "Chess.com"]
[Date "2020.04.21"]
[Round "6"]
[White "nihalsarin"]
[Black "Echecmat"]
[Result "1-0"]
[WhiteElo "3016"]
[BlackElo "2176"]
[TimeControl "180+1"]
[EndTime "11:05:39 PDT"]
[Termination "nihalsarin won by resignation"]

1. h4 {[%clk 0:03:00.6]} 1... d5 {[%clk 0:02:59.1]} 2. h5 {[%clk 0:03:00.7]}
2... Nf6 {[%clk 0:02:57.6]} 3. d4 {[%clk 0:03:00.4]} 3... Bg4 {[%clk 0:02:56.4]}
4. h6 {[%clk 0:03:00.7]} 4... g6 {[%clk 0:02:53.6]} 5. Nc3 {[%clk 0:03:01.2]}
5... c6 {[%clk 0:02:52.5]} 6. f3 {[%clk 0:03:01.4]} 6... Bc8 {[%clk 0:02:48.3]}
7. e4 {[%clk 0:03:00.7]} 7... e6 {[%clk 0:02:40.2]} 8. e5 {[%clk 0:02:58]} 8...
Nfd7 {[%clk 0:02:37]} 9. Nh3 {[%clk 0:02:58.6]} 9... Be7 {[%clk 0:02:33.7]} 10.
Nf2 {[%clk 0:02:58.9]} 10... c5 {[%clk 0:02:32.5]} 11. Nb5 {[%clk 0:02:54.7]}
11... Qb6 {[%clk 0:02:22.8]} 12. a4 {[%clk 0:02:49.7]} 12... Nc6 {[%clk
0:02:21.8]} 13. dxc5 {[%clk 0:02:41.9]} 13... Nxc5 {[%clk 0:02:15.5]} 14. a5
{[%clk 0:02:36.4]} 14... Qd8 {[%clk 0:02:13.9]} 15. Ng4 {[%clk 0:02:31.6]} 15...
a6 {[%clk 0:02:10.9]} 16. Nd4 {[%clk 0:02:31.1]} 16... Bh4+ {[%clk 0:02:07.4]}
17. Ke2 {[%clk 0:02:30]} 17... Bd7 {[%clk 0:01:57.6]} 18. Be3 {[%clk 0:02:25.7]}
18... Nxd4+ {[%clk 0:01:55.5]} 19. Qxd4 {[%clk 0:02:26.1]} 19... Bb5+ {[%clk
0:01:52.3]} 20. Kd2 {[%clk 0:02:26.3]} 20... Nd7 {[%clk 0:01:47.9]} 21. Bxb5
{[%clk 0:02:21.8]} 21... axb5 {[%clk 0:01:47.5]} 22. Rxh4 {[%clk 0:02:22.5]}
22... Rxa5 {[%clk 0:01:33.5]} 23. Rxa5 {[%clk 0:02:18]} 23... Qxa5+ {[%clk
0:01:33.9]} 24. b4 {[%clk 0:02:18.6]} 24... Qd8 {[%clk 0:01:30.5]} 25. Rh1
{[%clk 0:02:16.3]} 25... O-O {[%clk 0:01:30.7]} 26. Ra1 {[%clk 0:02:16.4]} 26...
f5 {[%clk 0:01:25]} 27. exf6 {[%clk 0:02:15.8]} 27... Qc7 {[%clk 0:01:20.6]} 28.
f7+ {[%clk 0:02:13]} 28... Rxf7 {[%clk 0:01:18.2]} 29. Ra8+ {[%clk 0:02:12.9]}
29... Nb8 {[%clk 0:01:18.2]} 30. Nf6+ {[%clk 0:02:06]} 30... Kf8 {[%clk
0:01:15.9]} 31. Qc5+ {[%clk 0:02:06.1]} 31... Re7 {[%clk 0:01:10.3]} 32. Qxc7
{[%clk 0:02:05.9]} 32... Rxc7 {[%clk 0:01:10]} 33. Rxb8+ {[%clk 0:02:06.8]} 1-0

[Event "*** Titled Tuesday Blitz"]
[Site "Chess.com"]
[Date "2020.04.21"]
[Round "6"]
[White "jfriedel"]
[Black "BlueWizzard"]
[Result "1-0"]
[WhiteElo "2595"]
[BlackElo "2740"]
[TimeControl "180+1"]
[EndTime "11:05:44 PDT"]
[Termination "jfriedel won by resignation"]

1. d4 {[%clk 0:03:00.9]} 1... c6 {[%clk 0:03:00.9]} 2. c4 {[%clk 0:02:59.3]}
2... d6 {[%clk 0:03:01.1]} 3. Nf3 {[%clk 0:02:59.3]} 3... Nf6 {[%clk 0:03:00.6]}
4. Nc3 {[%clk 0:02:58.7]} 4... Bf5 {[%clk 0:03:00.2]} 5. g3 {[%clk 0:02:55.7]}
5... g6 {[%clk 0:02:56.7]} 6. Bg2 {[%clk 0:02:55.4]} 6... Ne4 {[%clk 0:02:56.7]}
7. O-O {[%clk 0:02:47.2]} 7... Bg7 {[%clk 0:02:54.9]} 8. Ne1 {[%clk 0:02:31.4]}
8... Nxc3 {[%clk 0:02:43.2]} 9. bxc3 {[%clk 0:02:32.3]} 9... O-O {[%clk
0:02:42.8]} 10. e4 {[%clk 0:02:31.3]} 10... Be6 {[%clk 0:02:42]} 11. Qe2 {[%clk
0:02:21.6]} 11... Qa5 {[%clk 0:02:41.5]} 12. Rb1 {[%clk 0:01:44.6]} 12... Nd7
{[%clk 0:02:11.1]} 13. d5 {[%clk 0:01:41.5]} 13... Nc5 {[%clk 0:02:01.8]} 14.
dxe6 {[%clk 0:01:40.9]} 14... fxe6 {[%clk 0:02:01.4]} 15. Nd3 {[%clk 0:01:35.2]}
15... Na4 {[%clk 0:01:59.5]} 16. Rxb7 {[%clk 0:01:33.3]} 16... Nxc3 {[%clk
0:01:59.5]} 17. Qg4 {[%clk 0:01:32]} 17... Rf6 {[%clk 0:01:46]} 18. Rxe7 {[%clk
0:01:27.1]} 18... Qxa2 {[%clk 0:01:36.2]} 19. Bg5 {[%clk 0:01:21]} 19... h5
{[%clk 0:01:29.3]} 20. Qh3 {[%clk 0:01:20.3]} 20... Rf5 {[%clk 0:01:17.8]} 1-0

[Event "*** Titled Tuesday Blitz"]
[Site "Chess.com"]
[Date "2020.04.21"]
[Round "6"]
[White "Spring199"]
[Black "Shoytan"]
[Result "1-0"]
[WhiteElo "2394"]
[BlackElo "2530"]
[TimeControl "180+1"]
[EndTime "11:05:45 PDT"]
[Termination "Spring199 won by resignation"]

1. d4 {[%clk 0:03:00.9]} 1... Nf6 {[%clk 0:02:59.4]} 2. c4 {[%clk 0:03:00.5]}
2... g6 {[%clk 0:02:59.4]} 3. Nc3 {[%clk 0:03:00.1]} 3... Bg7 {[%clk 0:02:58.5]}
4. e4 {[%clk 0:02:59.6]} 4... O-O {[%clk 0:02:58.8]} 5. Nge2 {[%clk 0:02:59.5]}
5... d6 {[%clk 0:02:58.8]} 6. Ng3 {[%clk 0:02:58.9]} 6... e5 {[%clk 0:02:51.5]}
7. d5 {[%clk 0:02:57.9]} 7... Na6 {[%clk 0:02:49.6]} 8. h4 {[%clk 0:02:56.6]}
8... h5 {[%clk 0:02:44.4]} 9. Bg5 {[%clk 0:02:56]} 9... Bd7 {[%clk 0:02:39.6]}
10. Be2 {[%clk 0:02:55.1]} 10... c6 {[%clk 0:02:37.5]} 11. Qd2 {[%clk
0:02:51.6]} 11... Qa5 {[%clk 0:02:31.2]} 12. Bxf6 {[%clk 0:02:27.1]} 12... Bxf6
{[%clk 0:02:26.6]} 13. Bxh5 {[%clk 0:02:26.5]} 13... gxh5 {[%clk 0:02:01.2]} 14.
Nxh5 {[%clk 0:02:21.2]} 14... Qd8 {[%clk 0:01:57.6]} 15. Qh6 {[%clk 0:02:11.8]}
15... Bh8 {[%clk 0:01:56.7]} 16. O-O-O {[%clk 0:02:04.1]} 16... Nc5 {[%clk
0:01:37.7]} 17. Rh3 {[%clk 0:01:58.8]} 17... Bxh3 {[%clk 0:01:26.2]} 18. gxh3
{[%clk 0:01:58.4]} 18... f5 {[%clk 0:01:03.8]} 19. Qg6+ {[%clk 0:01:54.6]} 1-0